fUST/lending_fUST_20240413
["ID","MTS","AMOUNT","RATE_DAILY","PERIOD"]
[322442878,1713006639974,-502.3961917,0.00035616,7]
[322442879,1713006639986,-500.0,0.00035616,7]
[322442880,1713006639996,-300.0,0.00035616,7]
[322442881,1713006640005,-523.11839054,0.00035616,7]
[322442882,1713006640014,-500.0,0.00035616,7]
[322442883,1713006640022,-500.0,0.00035616,7]
[322442884,1713006640031,-500.0,0.00035616,7]
[322442885,1713006640041,-500.0,0.00035616,7]
[322442886,1713006640050,-179.25745863,0.00035616,7]
[322442887,1713006640059,-500.0,0.00035616,7]
[322442888,1713006640068,-500.0,0.00035616,7]
[322442889,1713006640078,-500.0,0.00035616,7]
[322442890,1713006640087,-500.0,0.00035616,7]
[322442891,1713006640096,-500.0,0.00035616,7]
[322442892,1713006640106,-500.0,0.00035616,7]
[322442893,1713006640115,-500.0,0.00035616,7]
[322442894,1713006640123,-500.0,0.00035616,7]
[322442895,1713006640133,-1450.95,0.00035616,7]
[322442896,1713006640142,-500.0,0.00035616,7]
[322442897,1713006640151,-500.0,0.00035616,7]
[322442898,1713006640161,-1373.52,0.00035616,7]
[322442899,1713006640170,-502.49965639,0.00035616,7]
[322442900,1713006640179,-500.0,0.00035616,7]
[322442901,1713006640188,-500.0,0.00035616,7]
[322442902,1713006640197,-500.0,0.00035616,7]
[322442903,1713006640206,-500.0,0.00035616,7]
[322442904,1713006640215,-500.0,0.00035616,7]
[322442905,1713006640226,-598.56,0.00035616,7]
[322442906,1713006640236,-500.0,0.00035616,7]
[322442907,1713006640245,-500.0,0.00035616,7]
[322442909,1713006640254,-2248.18,0.00035616,7]
[322442911,1713006640263,-500.0,0.00035616,7]
[322442913,1713006640272,-982.99,0.00035616,7]
[322442914,1713006640281,-500.0,0.00035616,7]
[322442916,1713006640291,-500.0,0.00035616,7]
[322442917,1713006640300,-500.0,0.00035616,7]
[322442918,1713006640310,-500.0,0.00035616,7]
[322442919,1713006640320,-500.0,0.00035616,7]
[322442920,1713006640329,-500.0,0.00035616,7]
[322442921,1713006640338,-500.0,0.00035616,7]
[322442922,1713006640348,-500.0,0.00035616,7]
[322442923,1713006640357,-500.0,0.00035616,7]
[322442924,1713006640366,-6612.98,0.00035616,7]
[322442925,1713006640375,-714.69,0.00035616,7]
[322442926,1713006640385,-500.0,0.00035616,7]
[322442927,1713006640395,-500.0,0.00035616,7]
[322442928,1713006640405,-739.62,0.00035616,7]
[322442929,1713006640414,-1151.21,0.00035616,7]
[322442930,1713006640423,-875.66,0.00035616,7]
[322442931,1713006640433,-2379.83,0.00035616,7]
[322442932,1713006640442,-199.06636884,0.00035616,7]
[322442933,1713006640451,-500.0,0.00035616,7]
[322442934,1713006640460,-500.0,0.00035616,7]
[322442935,1713006640469,-500.0,0.00035616,7]
[322442936,1713006640479,-500.0,0.00035616,7]
[322442937,1713006640489,-516.88435255,0.00035616,7]
[322442938,1713006640498,-2819.76,0.00035616,7]
[322442939,1713006640507,-500.0,0.00035616,7]
[322442940,1713006640517,-500.0,0.00035616,7]
[322442941,1713006640526,-500.0,0.00035616,7]
[322442942,1713006640535,-500.0,0.00035616,7]
[322442943,1713006640545,-219.28494068,0.00035616,7]
[322442944,1713006640554,-500.0,0.00035616,7]
[322442945,1713006640563,-871.81,0.00035616,7]
[322442946,1713006640572,-500.0,0.00035616,7]
[322442947,1713006640583,-993.31,0.00035616,7]
[322442948,1713006640592,-500.0,0.00035616,7]
[322442949,1713006640601,-2361.33,0.00035616,7]
[322442950,1713006640610,-500.0,0.00035616,7]
[322442951,1713006640619,-500.0,0.00035616,7]
[322442952,1713006640629,-500.0,0.00035616,7]
[322442953,1713006640638,-500.0,0.00035616,7]
[322442954,1713006640647,-875.99,0.00035616,7]
[322442955,1713006640656,-811.21,0.00035616,7]
[322442956,1713006640666,-500.0,0.00035616,7]
[322442957,1713006640675,-2134.44,0.00035616,7]
[322442958,1713006640685,-2597.45,0.00035616,7]
[322442959,1713006640694,-505.81425759,0.00035616,7]
[322442960,1713006640704,-1083.37,0.00035616,7]
[322442961,1713006640713,-500.0,0.00035616,7]
[322442962,1713006640722,-500.0,0.00035616,7]
[322442963,1713006640731,-1338.6,0.00035616,7]
[322442965,1713006640749,-1112.44,0.00035616,7]
[322442967,1713006640762,-193.55305598,0.00035616,7]
[322442969,1713006640772,-500.0,0.00035616,7]
[322442970,1713006640781,-500.0,0.00035616,7]
[322442971,1713006640791,-507.82013399,0.00035616,7]
[322442973,1713006640801,-500.0,0.00035616,7]
[322442974,1713006640810,-500.0,0.00035616,7]
[322442976,1713006640820,-764.29,0.00035616,7]
[322442980,1713006640996,-453.65434106,0.00035616,7]
[322442981,1713006641006,-500.0,0.00035616,7]
[322442982,1713006641015,-9724.1,0.00035616,7]
[322442983,1713006641024,-500.0,0.00035616,7]
[322442984,1713006641034,-500.0,0.00035616,7]
[322442985,1713006641043,-500.0,0.00035616,7]
[322442986,1713006641052,-500.0,0.00035616,7]
[322442987,1713006641061,-500.0,0.00035616,7]
[322442988,1713006641070,-512.13517562,0.00035616,7]
[322442989,1713006641080,-627.82,0.00035616,7]
[322442990,1713006641089,-500.0,0.00035616,7]
[322442991,1713006641099,-504.24733933,0.00035616,7]
[322442992,1713006641108,-1155.62,0.00035616,7]
[322442993,1713006641118,-701.08,0.00035616,7]
[322442994,1713006641128,-500.0,0.00035616,7]
[322442995,1713006641137,-500.0,0.00035616,7]
[322442996,1713006641146,-500.0,0.00035616,7]
[322442997,1713006641155,-291.63521212,0.00035616,7]
[322442998,1713006641164,-500.0,0.00035616,7]
[322442999,1713006641174,-500.0,0.00035616,7]
[322443000,1713006641183,-500.0,0.00035616,7]
[322443001,1713006641192,-500.0,0.00035616,7]
[322443002,1713006641201,-1014.66,0.00035616,7]
[322443003,1713006641210,-500.0,0.00035616,7]
[322443004,1713006641221,-500.0,0.00035616,7]
[322443005,1713006641233,-500.0,0.00035616,7]
[322443006,1713006641244,-500.0,0.00035616,7]
[322443007,1713006641253,-32228.55,0.00035616,7]
[322443008,1713006641263,-507.93374897,0.00035616,7]
[322443009,1713006641272,-500.0,0.00035616,7]
[322443010,1713006641281,-540.5841576,0.00035616,7]
[322443011,1713006641291,-2374.65,0.00035616,7]
[322443012,1713006641300,-1042.11,0.00035616,7]
[322443013,1713006641311,-500.0,0.00035616,7]
[322443014,1713006641320,-3734.56,0.00035616,7]
[322443015,1713006641329,-294.73660427,0.00035616,7]
[322443016,1713006641338,-516.49275527,0.00035616,7]
[322443017,1713006641348,-505.06340822,0.00035616,7]
[322443018,1713006641357,-500.0,0.00035616,7]
[322443019,1713006641367,-500.0,0.00035616,7]
[322443020,1713006641376,-500.0,0.00035616,7]
[322443021,1713006641385,-1383.6,0.00035616,7]
[322443022,1713006641395,-500.0,0.00035616,7]
[322443023,1713006641404,-501.56750092,0.00035616,7]
[322443024,1713006641413,-1344.06,0.00035616,7]
[322443025,1713006641423,-1025.01,0.00035616,7]
[322443026,1713006641432,-500.0,0.00035616,7]
[322443027,1713006641441,-500.0,0.00035616,7]
[322443028,1713006641450,-302.04,0.00035616,2]
[322443029,1713006641460,-5075.813849,0.00035616,120]
[322443030,1713006641469,-52460.1531195,0.00035616,2]
[322443031,1713006641479,-167.56865632,0.00035862,2]
[322443032,1713006641490,-154.98450155,0.0003589,2]
[322443033,1713006641501,-20335.2507,0.00036011,30]
[322443034,1713006641510,-151.51526625,0.00036099,2]
[322443035,1713006641521,-620.00245985,0.00036156,2]
[322443036,1713006641530,-2000.0,0.000362,11]
[322443037,1713006641541,-167.56865632,0.00036208,2]
[322443038,1713006641550,-255.778738,0.0003624,2]
[322443039,1713006641561,-153.0,0.00036278,2]
[322443040,1713006641571,-560.0,0.0003632,2]
[322443041,1713006641580,-167.56865632,0.00036554,2]
[322443042,1713006641590,-2000.0,0.000366,12]
[322443043,1713006641601,-949.18084529,0.00036696,2]
[322443044,1713006641610,-2000.0,0.000368,13]
[322443045,1713006641619,-2000.0,0.000368,16]
[322443046,1713006641629,-2000.0,0.000368,18]
[322443047,1713006641638,-999.90001,0.00036855,2]
[322443048,1713006641648,-40130.64700927,0.00036898,2]
[322443049,1713006641658,-3084.91609574,0.000369,2]
[322443050,1713006641667,-167.56865632,0.000369,2]
[322443051,1713006641677,-176.36933,0.00036951,2]
[322443052,1713006641687,-500.0,0.00036986,7]
[322443053,1713006641696,-446.45882327,0.00036986,7]
[322443054,1713006641705,-500.0,0.00036986,7]
[322443055,1713006641716,-301.7177359,0.00036997,4]
[322443056,1713006641725,-171.10625245,0.00036997,2]
[322443057,1713006641736,-874.98344823,0.00036997,4]
[322443058,1713006641745,-1907.76586448,0.00036999,4]
[322443059,1713006641754,-369.18939048,0.00036999,4]
[322443060,1713006641763,-65960.67588041,0.00036999,4]
[322443061,1713006641773,-155.1005172,0.00036999,4]
[322443062,1713006641782,-1681.43989039,0.00036999,4]
[322443063,1713006641791,-152.12,0.00036999,2]
[322443064,1713006641800,-500.0,0.00036999,7]
[322443065,1713006641809,-500.0,0.00036999,7]
[322443066,1713006641819,-500.0,0.00036999,7]
[322443067,1713006641828,-500.0,0.00036999,7]
[322443068,1713006641838,-104177.93208692,0.00037,2]
[322443069,1713006641847,-363.12217854,0.00037,2]
[322443070,1713006641855,-9160.46369962,0.00037,40]
[322443071,1713006641865,-10000.0,0.00037,30]
[322443072,1713006641874,-702.417402,0.00037,2]
[322443073,1713006641883,-702.417402,0.00037,2]
[322443074,1713006641893,-264.158041,0.00037,2]
[322443075,1713006641902,-264.158041,0.00037,2]
[322443076,1713006641912,-1054.312716,0.00037,2]
[322443077,1713006641921,-1054.312716,0.00037,2]
[322443078,1713006641930,-151.0,0.00037,2]
[322443079,1713006641939,-488.345146,0.00037,2]
[322443080,1713006641948,-154.619587,0.00037,2]
[322443081,1713006641957,-488.345146,0.00037,2]
[322443082,1713006641966,-151.0,0.00037,2]
[322443083,1713006641975,-151.0,0.00037,2]
[322443084,1713006641984,-154.803619,0.00037,2]
[322443085,1713006641995,-151.0,0.00037,2]
[322443086,1713006642005,-151.0,0.00037,2]
[322443087,1713006642014,-155.450434,0.00037,2]
[322443088,1713006642023,-158.888086,0.00037,2]
[322443089,1713006642032,-158.888086,0.00037,2]
[322443090,1713006642041,-151.0,0.00037,2]
[322443091,1713006642049,-151.0,0.00037,2]
[322443092,1713006642059,-255.675625,0.00037,2]
[322443093,1713006642068,-2156.060629,0.00037,2]
[322443094,1713006642077,-255.675625,0.00037,2]
[322443095,1713006642086,-2156.060629,0.00037,2]
[322443096,1713006642096,-151.0,0.00037,2]
[322443097,1713006642105,-253.297468,0.00037,2]
[322443098,1713006642114,-151.0,0.00037,2]
[322443099,1713006642124,-253.297468,0.00037,2]
[322443100,1713006642134,-151.0,0.00037,2]
[322443101,1713006642143,-151.0,0.00037,2]
[322443102,1713006642152,-151.0,0.00037,2]
[322443103,1713006642162,-151.0,0.00037,2]
[322443104,1713006642171,-151.0,0.00037,2]
[322443105,1713006642181,-151.0,0.00037,2]
[322443106,1713006642190,-153.324263,0.00037,2]
[322443107,1713006642199,-1703.676219,0.00037,2]
[322443108,1713006642208,-1703.676219,0.00037,2]
[322443109,1713006642218,-1333.33333333,0.00037088,9]
[322443110,1713006642229,-150.0,0.00037099,2]
[322443111,1713006642239,-155.57915177,0.00037251,2]
[322443112,1713006642248,-400.0,0.00037398,2]
[322443113,1713006642259,-619.9409783,0.00037398,4]
[322443114,1713006642269,-418.62152639,0.00037398,4]
[322443115,1713006642278,-548.90126628,0.00037398,4]
[322443116,1713006642287,-524.8635464,0.00037399,4]
[322443117,1713006642296,-1494.36779976,0.00037399,4]
[322443118,1713006642306,-1251.249865,0.000374,24]
[322443119,1713006642315,-160.0,0.0003746,10]
[322443120,1713006642324,-185.0784515,0.0003746,10]
[322443121,1713006642333,-159630.64378147,0.00037461,2]
[322443122,1713006642342,-151.0,0.00037461,2]
[322443123,1713006642351,-280.812343,0.00037461,2]
[322443124,1713006642361,-151.0,0.00037461,2]
[322443125,1713006642371,-151.0,0.00037461,2]
[322443126,1713006642381,-151.0,0.00037461,2]
[322443127,1713006642391,-151.0,0.00037461,2]
[322443128,1713006642400,-702.417402,0.00037461,2]
[322443129,1713006642410,-702.417402,0.00037461,2]
[322443130,1713006642419,-264.158041,0.00037461,2]
[322443131,1713006642429,-264.158041,0.00037461,2]
[322443132,1713006642438,-1054.312716,0.00037461,2]
[322443133,1713006642448,-1054.312716,0.00037461,2]
[322443134,1713006642457,-151.0,0.00037461,2]
[322443135,1713006642467,-488.345146,0.00037461,2]
[322443136,1713006642476,-488.345146,0.00037461,2]
[322443137,1713006642487,-151.0,0.00037461,2]
[322443138,1713006642495,-151.0,0.00037461,2]
[322443139,1713006642504,-151.0,0.00037461,2]
[322443140,1713006642514,-151.0,0.00037461,2]
[322443141,1713006642523,-158.888086,0.00037461,2]
[322443142,1713006642532,-158.888086,0.00037461,2]
[322443143,1713006642542,-151.0,0.00037461,2]
[322443144,1713006642551,-151.0,0.00037461,2]
[322443145,1713006642561,-255.675625,0.00037461,2]
[322443146,1713006642571,-2156.060629,0.00037461,2]
[322443147,1713006642580,-255.675625,0.00037461,2]
[322443148,1713006642590,-2156.060629,0.00037461,2]
[322443149,1713006642600,-151.0,0.00037461,2]
[322443150,1713006642610,-253.297468,0.00037461,2]
[322443151,1713006642619,-151.0,0.00037461,2]
[322443152,1713006642628,-253.297468,0.00037461,2]
[322443153,1713006642637,-151.0,0.00037461,2]
[322443154,1713006642647,-151.0,0.00037461,2]
[322443155,1713006642656,-151.0,0.00037461,2]
[322443156,1713006642665,-151.0,0.00037461,2]
[322443157,1713006642674,-151.0,0.00037461,2]
[322443158,1713006642684,-151.0,0.00037461,2]
[322443159,1713006642694,-1703.676219,0.00037461,2]
[322443160,1713006642703,-1703.676219,0.00037461,2]
[322443161,1713006642714,-500.0,0.00037533,7]
[322443162,1713006642724,-500.0,0.00037533,7]
[322443163,1713006642735,-500.0,0.00037533,7]
[322443164,1713006642745,-500.0,0.00037533,7]
[322443165,1713006642755,-500.0,0.00037534,7]
[322443166,1713006642765,-289.05681872,0.00037534,7]
[322443167,1713006642775,-500.0,0.00037534,7]
[322443168,1713006642786,-253.704668,0.00037534,2]
[322443169,1713006642798,-1276.19,0.00037534,7]
[322443170,1713006642807,-500.0,0.00037534,7]
[322443171,1713006642817,-500.0,0.00037534,7]
[322443172,1713006642828,-500.0,0.00037534,7]
[322443173,1713006642839,-500.0,0.00037534,7]
[322443174,1713006642851,-500.0,0.00037534,7]
[322443175,1713006642861,-319.14847772,0.00037534,7]
[322443176,1713006642870,-500.0,0.00037534,7]
[322443177,1713006642881,-500.0,0.00037534,7]
[322443178,1713006642890,-151.0,0.00037534,2]
[322443179,1713006642900,-500.0,0.00037534,7]
[322443180,1713006642911,-500.0,0.00037534,7]
[322443181,1713006642922,-151.0,0.00037534,2]
[322443182,1713006642931,-500.0,0.00037534,7]
[322443183,1713006642940,-151.0,0.00037534,2]
[322443184,1713006642950,-151.0,0.00037534,2]
[322443185,1713006642959,-500.0,0.00037534,7]
[322443186,1713006642968,-500.0,0.00037534,7]
[322443187,1713006642978,-500.0,0.00037534,7]
[322443188,1713006642989,-500.0,0.00037534,7]
[322443189,1713006642999,-559.91195239,0.00037534,7]
[322443190,1713006643009,-735.0,0.00037534,7]
[322443191,1713006643018,-500.0,0.00037534,7]
[322443192,1713006643027,-1764.0,0.00037534,2]
[322443193,1713006643038,-682.1,0.00037534,7]
[322443194,1713006643047,-500.0,0.00037534,7]
[322443195,1713006643056,-500.0,0.00037534,7]
[322443196,1713006643065,-500.4774247,0.00037534,7]
[322443197,1713006643074,-500.0,0.00037534,7]
[322443198,1713006643083,-702.417402,0.00037534,2]
[322443200,1713006643092,-702.417402,0.00037534,2]
[322443201,1713006643103,-500.0,0.00037534,7]
[322443202,1713006643112,-1449.90513905,0.00037534,7]
[322443400,1713007837959,-163.8615962,0.00027396,2]
[322443401,1713007837969,-159.858928,0.00027397,2]
[322443402,1713007837989,-159.671486,0.00027397,2]
[322443403,1713007838001,-57.76477856,0.00033749,7]
[322443422,1713007839440,-99.54621853,0.00033749,7]
[322443424,1713007839454,-485.31631277,0.00033833,4]
[322443426,1713007839463,-1241.84783323,0.00033886,4]
[322443428,1713007839472,-294.791304,0.00034171,2]
[322443430,1713007839481,-159.671486,0.00034703,2]
[322443432,1713007839490,-153.70839379,0.00034967,7]
[322443434,1713007839499,-907.72770495,0.00035361,2]
[322443436,1713007839508,-2086.08257143,0.00035612,2]
[322443437,1713007839520,-400.0,0.00035613,2]
[322443438,1713007839529,-309.31065344,0.00035614,4]
[322443439,1713007839539,-524.8635464,0.00035614,4]
[322443440,1713007839549,-400.0,0.00035614,2]
[322443441,1713007839559,-1494.36779976,0.00035614,4]
[322443442,1713007839568,-619.9409783,0.00035614,4]
[322443443,1713007839579,-418.62152639,0.00035614,4]
[322443444,1713007839590,-548.90126628,0.00035614,4]
[322443445,1713007839600,-1681.43989039,0.00035614,4]
[322443447,1713007839609,-874.98344823,0.00035614,4]
[322443448,1713007839618,-369.18939048,0.00035614,4]
[322443449,1713007839627,-1907.76586448,0.00035614,4]
[322443450,1713007839637,-155.1005172,0.00035614,4]
[322443451,1713007839647,-301.7177359,0.00035614,4]
[322443452,1713007839656,-171.10625245,0.00035614,2]
[322443453,1713007839666,-1908.40397556,0.00035615,4]
[322443454,1713007839676,-65960.67588041,0.00035615,4]
[322443455,1713007839685,-500.0,0.00035616,7]
[322443456,1713007839695,-559.91195239,0.00035616,7]
[322443457,1713007839704,-500.0,0.00035616,7]
[322443458,1713007839713,-317.31078061,0.00035616,7]
[322443459,1713007839723,-500.0,0.00035616,7]
[322443460,1713007839733,-682.67,0.00035616,7]
[322443461,1713007839742,-500.0,0.00035616,7]
[322443462,1713007839752,-503.93477192,0.00035616,7]
[322443463,1713007839763,-500.0,0.00035616,7]
[322443464,1713007839772,-500.0,0.00035616,7]
[322443465,1713007839782,-500.0,0.00035616,7]
[322443466,1713007839791,-500.4774247,0.00035616,7]
[322443468,1713007839801,-205.92793265,0.00035616,7]
[322443469,1713007839810,-500.0,0.00035616,7]
[322443470,1713007839819,-1570.57,0.00035616,7]
[322443471,1713007839829,-500.0,0.00035616,7]
[322443473,1713007839838,-500.0,0.00035616,7]
[322443474,1713007839847,-332.38896845,0.00035616,7]
[322443475,1713007839857,-500.0,0.00035616,7]
[322443476,1713007839866,-500.0,0.00035616,7]
[322443477,1713007839876,-500.0,0.00035616,7]
[322443478,1713007839885,-501.64491208,0.00035616,7]
[322443479,1713007839894,-500.0,0.00035616,7]
[322443480,1713007839903,-500.0,0.00035616,7]
[322443481,1713007839913,-500.0,0.00035616,7]
[322443482,1713007839923,-500.0,0.00035616,7]
[322443483,1713007839933,-500.0,0.00035616,7]
[322443484,1713007839942,-500.0,0.00035616,7]
[322443485,1713007839952,-500.0,0.00035616,7]
[322443486,1713007840115,-500.0,0.00035616,7]
[322443487,1713007840126,-500.0,0.00035616,7]
[322443488,1713007840136,-500.0,0.00035616,7]
[322443489,1713007840147,-500.0,0.00035616,7]
[322443490,1713007840157,-500.0,0.00035616,7]
[322443491,1713007840169,-500.0,0.00035616,7]
[322443492,1713007840179,-839.17,0.00035616,7]
[322443493,1713007840190,-500.0,0.00035616,7]
[322443494,1713007840200,-500.0,0.00035616,7]
[322443495,1713007840213,-2212.74,0.00035616,7]
[322443496,1713007840224,-897.62,0.00035616,7]
[322443497,1713007840233,-500.0,0.00035616,7]
[322443498,1713007840244,-500.0,0.00035616,7]
[322443499,1713007840254,-508.9012167,0.00035616,7]
[322443500,1713007840265,-500.0,0.00035616,7]
[322443501,1713007840276,-500.0,0.00035616,7]
[322443502,1713007840285,-508.52981161,0.00035616,7]
[322443503,1713007840295,-500.0,0.00035616,7]
[322443504,1713007840306,-500.0,0.00035616,7]
[322443505,1713007840317,-500.0,0.00035616,7]
[322443506,1713007840327,-500.0,0.00035616,7]
[322443507,1713007840337,-500.0,0.00035616,7]
[322443508,1713007840348,-500.0,0.00035616,7]
[322443509,1713007840358,-500.0,0.00035616,7]
[322443510,1713007840368,-504.87888477,0.00035616,7]
[322443511,1713007840379,-500.0,0.00035616,7]
[322443512,1713007840389,-500.0,0.00035616,7]
[322443513,1713007840399,-500.0,0.00035616,7]
[322443514,1713007840410,-500.0,0.00035616,7]
[322443515,1713007840421,-500.0,0.00035616,7]
[322443516,1713007840431,-3808.76,0.00035616,7]
[322443517,1713007840441,-998.68,0.00035616,7]
[322443518,1713007840452,-504.2554637,0.00035616,7]
[322443519,1713007840462,-580.57,0.00035616,7]
[322443520,1713007840472,-532.76534943,0.00035616,7]
[322443521,1713007840482,-1316.29,0.00035616,7]
[322443522,1713007840493,-500.0,0.00035616,7]
[322443523,1713007840504,-500.0,0.00035616,7]
[322443524,1713007840515,-500.0,0.00035616,7]
[322443525,1713007840526,-500.0,0.00035616,7]
[322443526,1713007840536,-573.62,0.00035616,7]
[322443527,1713007840546,-500.0,0.00035616,7]
[322443528,1713007840556,-289.45,0.00035616,2]
[322443529,1713007840568,-289.05681872,0.00035616,7]
[322443530,1713007840580,-350.69926244,0.00035616,7]
[322443531,1713007840592,-942.03,0.00035616,7]
[322443532,1713007840602,-500.0,0.00035616,7]
[322443533,1713007840612,-500.0,0.00035616,7]
[322443534,1713007840624,-500.0,0.00035616,7]
[322443535,1713007840635,-191.06795352,0.00035616,7]
[322443536,1713007840644,-684.91,0.00035616,7]
[322443537,1713007840655,-500.0,0.00035616,7]
[322443538,1713007840667,-500.0,0.00035616,7]
[322443539,1713007840677,-1103.25,0.00035616,7]
[322443540,1713007840687,-500.0,0.00035616,7]
[322443541,1713007840697,-500.0,0.00035616,7]
[322443542,1713007840707,-509.30317392,0.00035616,7]
[322443543,1713007840717,-1223.02,0.00035616,7]
[322443544,1713007840727,-500.0,0.00035616,7]
[322443545,1713007840737,-2402.1,0.00035616,7]
[322443546,1713007840747,-777.41,0.00035616,7]
[322443547,1713007840757,-951.92,0.00035616,7]
[322443548,1713007840774,-500.0,0.00035616,7]
[322443549,1713007840785,-2489.22,0.00035616,7]
[322443550,1713007840796,-500.0,0.00035616,7]
[322443551,1713007840806,-500.0,0.00035616,7]
[322443552,1713007840815,-500.0,0.00035616,7]
[322443553,1713007840825,-2831.23,0.00035616,7]
[322443554,1713007840835,-500.0,0.00035616,7]
[322443555,1713007840844,-839.49,0.00035616,7]
[322443556,1713007840856,-2262.94,0.00035616,7]
[322443557,1713007840866,-500.0,0.00035616,7]
[322443558,1713007840875,-500.0,0.00035616,7]
[322443559,1713007840885,-500.0,0.00035616,7]
[322443560,1713007840895,-835.48,0.00035616,7]
[322443561,1713007840904,-9788.51,0.00035616,7]
[322443562,1713007840914,-500.0,0.00035616,7]
[322443563,1713007840923,-500.0,0.00035616,7]
[322443564,1713007840932,-1038.23,0.00035616,7]
[322443565,1713007840943,-2045.5,0.00035616,7]
[322443566,1713007840954,-1066.09,0.00035616,7]
[322443567,1713007840964,-1282.83,0.00035616,7]
[322443568,1713007840974,-319.14847772,0.00035616,7]
[322443569,1713007840985,-500.0,0.00035616,7]
[322443570,1713007840995,-500.0,0.00035616,7]
[322443571,1713007841006,-500.0,0.00035616,7]
[322443572,1713007841019,-500.0,0.00035616,7]
[322443573,1713007841029,-500.0,0.00035616,7]
[322443574,1713007841040,-500.0,0.00035616,7]
[322443575,1713007841050,-500.0,0.00035616,7]
[322443576,1713007841061,-577.5287327,0.00035616,7]
[322443577,1713007841072,-500.0,0.00035616,7]
[322443578,1713007841081,-671.87,0.00035616,7]
[322443579,1713007841090,-601.66,0.00035616,7]
[322443580,1713007841100,-500.0,0.00035616,7]
[322443581,1713007841110,-732.44,0.00035616,7]
[322443582,1713007841120,-31596.71,0.00035616,7]
[322443583,1713007841130,-500.0,0.00035616,7]
[322443584,1713007841140,-1010.79,0.00035616,7]
[322443585,1713007841150,-500.0,0.00035616,7]
[322443586,1713007841161,-1137.1,0.00035616,7]
[322443587,1713007841172,-2378.96,0.00035616,7]
[322443588,1713007841182,-500.0,0.00035616,7]
[322443589,1713007841192,-500.0,0.00035616,7]
[322443590,1713007841202,-500.0,0.00035616,7]
[322443591,1713007841213,-500.0,0.00035616,7]
[322443592,1713007841225,-500.0,0.00035616,7]
[322443593,1713007841236,-518.626347,0.00035616,7]
[322443594,1713007841247,-500.0,0.00035616,7]
[322443595,1713007841257,-2154.87,0.00035616,7]
[322443596,1713007841272,-1003.13,0.00035616,7]
[322443597,1713007841282,-3578.96,0.00035616,7]
[322443598,1713007841292,-1288.06,0.00035616,7]
[322443599,1713007841302,-500.0,0.00035616,7]
[322443600,1713007841313,-500.0,0.00035616,7]
[322443601,1713007841323,-500.0,0.00035616,7]
[322443602,1713007841334,-1325.95,0.00035616,7]
[322443603,1713007841343,-704.37,0.00035616,7]
[322443604,1713007841352,-6337.44,0.00035616,7]
[322443605,1713007841361,-1690.5,0.00035616,2]
[322443606,1713007841370,-500.0,0.00035616,7]
[322443607,1713007841380,-500.0,0.00035616,7]
[322443608,1713007841389,-3806.860386,0.00035616,120]
[322443609,1713007841399,-150.0,0.00035782,2]
[322443610,1713007841408,-2000.0,0.0003579,2]
[322443611,1713007841417,-35960.51904769,0.0003589,5]
[322443612,1713007841426,-155.0,0.0003589,2]
[322443613,1713007841435,-500.0,0.0003589,7]
[322443614,1713007841445,-500.0,0.0003589,7]
[322443615,1713007841455,-682.67,0.0003589,7]